[Event "*** Titled Tuesday Blitz"]
[Site "Chess.com"]
[Date "2019.04.02"]
[Round "1"]
[White "AdrianaNikolova"]
[Black "champ2005"]
[Result "1-0"]
[WhiteElo "2470"]
[BlackElo "2807"]
[TimeControl "180+2"]
[EndTime "14:09:50 PDT"]
[Termination "AdrianaNikolova won by resignation"]

1. e4 {[%clk 0:02:59.4]} 1... e5 {[%clk 0:02:58.4]} 2. Nf3 {[%clk 0:03:00.3]}
2... Nf6 {[%clk 0:02:59.3]} 3. Nc3 {[%clk 0:03:00.3]} 3... Nc6 {[%clk
0:02:58.8]} 4. Bb5 {[%clk 0:03:01.1]} 4... Bb4 {[%clk 0:02:59.2]} 5. O-O {[%clk
0:03:00.7]} 5... O-O {[%clk 0:02:57.8]} 6. d3 {[%clk 0:03:01.7]} 6... d6 {[%clk
0:02:56.7]} 7. Bg5 {[%clk 0:03:01.9]} 7... Bxc3 {[%clk 0:02:57.8]} 8. bxc3
{[%clk 0:03:03.8]} 8... Ne7 {[%clk 0:02:59.4]} 9. Nh4 {[%clk 0:02:54.8]} 9...
Ng6 {[%clk 0:02:56.7]} 10. Nf5 {[%clk 0:02:38.3]} 10... h6 {[%clk 0:02:48.4]}
11. Bc1 {[%clk 0:02:21.8]} 11... c6 {[%clk 0:02:40.6]} 12. Ba4 {[%clk 0:02:22]}
12... Bxf5 {[%clk 0:02:33.5]} 13. exf5 {[%clk 0:02:22.8]} 13... Ne7 {[%clk
0:02:35.4]} 14. Qf3 {[%clk 0:02:15.6]} 14... Qa5 {[%clk 0:02:32.3]} 15. Bb3
{[%clk 0:02:11]} 15... Qxc3 {[%clk 0:02:33.1]} 16. Rb1 {[%clk 0:01:48.1]} 16...
Qa5 {[%clk 0:02:17.2]} 17. g4 {[%clk 0:01:32.2]} 17... Nfd5 {[%clk 0:01:23.9]}
18. Bxd5 {[%clk 0:01:05.2]} 18... Qxd5 {[%clk 0:01:18.6]} 19. Qxd5 {[%clk
0:00:59.3]} 19... Nxd5 {[%clk 0:01:19.7]} 20. Rxb7 {[%clk 0:01:00.9]} 20... Rfb8
{[%clk 0:01:19.2]} 21. Rd7 {[%clk 0:01:00.2]} 21... Rd8 {[%clk 0:01:19.6]} 22.
Rb7 {[%clk 0:00:45.3]} 22... Rab8 {[%clk 0:01:08.7]} 23. Rxa7 {[%clk 0:00:45.6]}
23... Nb4 {[%clk 0:01:10]} 24. Bd2 {[%clk 0:00:28.2]} 24... Nxc2 {[%clk
0:01:10.1]} 25. Rc1 {[%clk 0:00:21.5]} 25... Nd4 {[%clk 0:01:07.7]} 26. Kg2
{[%clk 0:00:21.4]} 26... Ra8 {[%clk 0:01:06.2]} 27. Rxa8 {[%clk 0:00:15.1]}
27... Rxa8 {[%clk 0:01:08.1]} 28. Ra1 {[%clk 0:00:13.6]} 28... Nb3 {[%clk
0:01:04.7]} 29. Rd1 {[%clk 0:00:13]} 29... Rxa2 {[%clk 0:01:06.1]} 30. Be3
{[%clk 0:00:12.3]} 30... Rb2 {[%clk 0:00:54.3]} 31. Kg3 {[%clk 0:00:11.9]} 31...
d5 {[%clk 0:00:53.3]} 32. f4 {[%clk 0:00:09.9]} 32... f6 {[%clk 0:00:51.9]} 33.
h4 {[%clk 0:00:09.7]} 33... d4 {[%clk 0:00:49.3]} 34. Bg1 {[%clk 0:00:10.8]}
34... Nc5 {[%clk 0:00:50.4]} 35. g5 {[%clk 0:00:09.1]} 35... Rb3 {[%clk
0:00:48.6]} 36. gxf6 {[%clk 0:00:08.3]} 36... gxf6 {[%clk 0:00:48.6]} 37. fxe5
{[%clk 0:00:09.8]} 37... fxe5 {[%clk 0:00:50.5]} 38. Kg4 {[%clk 0:00:09.9]}
38... Nxd3 {[%clk 0:00:44.1]} 39. Kh5 {[%clk 0:00:08.4]} 39... Kf7 {[%clk
0:00:43.1]} 40. Kxh6 {[%clk 0:00:08.4]} 40... c5 {[%clk 0:00:44.5]} 41. Bh2
{[%clk 0:00:06.8]} 41... e4 {[%clk 0:00:44.7]} 42. Rg1 {[%clk 0:00:07.7]} 42...
e3 {[%clk 0:00:41.2]} 43. Rg7+ {[%clk 0:00:08.4]} 43... Ke8 {[%clk 0:00:34.4]}
44. f6 {[%clk 0:00:05.5]} 44... Rb6 {[%clk 0:00:32.5]} 45. Kg5 {[%clk
0:00:05.3]} 45... Re6 {[%clk 0:00:27.1]} 46. Bg3 {[%clk 0:00:05.3]} 46... e2
{[%clk 0:00:16.2]} 47. Rg8+ {[%clk 0:00:06.4]} 47... Kf7 {[%clk 0:00:16]} 48.
Rg7+ {[%clk 0:00:07.7]} 48... Kf8 {[%clk 0:00:17.4]} 49. h5 {[%clk 0:00:08.6]}
49... Ne5 {[%clk 0:00:17.7]} 50. h6 {[%clk 0:00:08.1]} 50... Nf7+ {[%clk
0:00:18.7]} 51. Kg6 {[%clk 0:00:07.3]} 51... Re3 {[%clk 0:00:19.7]} 52. Be1
{[%clk 0:00:07.2]} 52... Rh3 {[%clk 0:00:20.2]} 53. Rxf7+ {[%clk 0:00:08]} 53...
Ke8 {[%clk 0:00:20.6]} 54. Re7+ {[%clk 0:00:08.8]} 54... Kd8 {[%clk 0:00:21.6]}
55. Rg7 {[%clk 0:00:07.8]} 55... d3 {[%clk 0:00:22.2]} 56. h7 {[%clk 0:00:08]}
56... c4 {[%clk 0:00:23.2]} 1-0

[Event "*** Titled Tuesday Blitz"]
[Site "Chess.com"]
[Date "2019.04.02"]
[Round "1"]
[White "PawnEatingZombie"]
[Black "TST2014"]
[Result "0-1"]
[WhiteElo "2141"]
[BlackElo "2530"]
[TimeControl "180+2"]
[EndTime "14:09:57 PDT"]
[Termination "TST2014 won by resignation"]

1. d4 {[%clk 0:02:50.1]} 1... Nf6 {[%clk 0:03:00.5]} 2. c4 {[%clk 0:02:50.2]}
2... c5 {[%clk 0:03:00.5]} 3. d5 {[%clk 0:02:49.7]} 3... e6 {[%clk 0:02:59.8]}
4. Nc3 {[%clk 0:02:50.4]} 4... exd5 {[%clk 0:03:00.8]} 5. cxd5 {[%clk
0:02:52.3]} 5... d6 {[%clk 0:03:02.1]} 6. Nf3 {[%clk 0:02:53.8]} 6... g6 {[%clk
0:03:03.5]} 7. Bf4 {[%clk 0:02:55.1]} 7... Bg7 {[%clk 0:03:04.2]} 8. Qa4+ {[%clk
0:02:55.1]} 8... Bd7 {[%clk 0:03:05.1]} 9. Qb3 {[%clk 0:02:55.4]} 9... Qc7
{[%clk 0:03:06.2]} 10. e4 {[%clk 0:02:54.6]} 10... O-O {[%clk 0:03:04.2]} 11.
Nd2 {[%clk 0:02:47.4]} 11... Re8 {[%clk 0:03:02.2]} 12. Be2 {[%clk 0:02:48]}
12... Nh5 {[%clk 0:02:48.5]} 13. Be3 {[%clk 0:02:46.5]} 13... a6 {[%clk
0:02:43.3]} 14. a4 {[%clk 0:02:45.4]} 14... Nf6 {[%clk 0:02:31.4]} 15. O-O
{[%clk 0:02:36.5]} 15... Ng4 {[%clk 0:02:32.1]} 16. Bxg4 {[%clk 0:02:35.3]}
16... Bxg4 {[%clk 0:02:32.6]} 17. f3 {[%clk 0:02:36.3]} 17... Bc8 {[%clk
0:02:31.8]} 18. Nc4 {[%clk 0:02:37.3]} 18... Nd7 {[%clk 0:02:32.7]} 19. Bf4
{[%clk 0:02:37]} 19... Ne5 {[%clk 0:02:33.1]} 20. Rfd1 {[%clk 0:01:35.9]} 20...
Bd7 {[%clk 0:02:23.7]} 21. a5 {[%clk 0:01:34.7]} 21... Rab8 {[%clk 0:02:11]} 22.
Nb6 {[%clk 0:01:34.9]} 22... c4 {[%clk 0:02:09.4]} 23. Qc2 {[%clk 0:01:24.5]}
23... Nd3 {[%clk 0:02:08.6]} 24. Be3 {[%clk 0:01:23.7]} 24... Nb4 {[%clk
0:02:05.2]} 25. Qe2 {[%clk 0:01:11.8]} 25... Bb5 {[%clk 0:02:03.9]} 26. Rac1
{[%clk 0:00:23.2]} 26... Nd3 {[%clk 0:01:58.7]} 27. Rc2 {[%clk 0:00:23.8]} 27...
Nxb2 {[%clk 0:01:56.1]} 28. Nxb5 {[%clk 0:00:20.9]} 28... axb5 {[%clk
0:01:55.3]} 29. Rxb2 {[%clk 0:00:22.3]} 29... f5 {[%clk 0:01:42]} 30. Rxb5
{[%clk 0:00:18.4]} 30... fxe4 {[%clk 0:01:42.8]} 31. Qxc4 {[%clk 0:00:16.9]}
31... Qe7 {[%clk 0:01:32.6]} 32. f4 {[%clk 0:00:16]} 32... Qh4 {[%clk
0:01:24.8]} 33. Rb2 {[%clk 0:00:14.9]} 33... Qg4 {[%clk 0:01:25.1]} 34. Rbd2
{[%clk 0:00:12.4]} 34... Re7 {[%clk 0:01:24.7]} 35. Qe2 {[%clk 0:00:10.9]} 35...
Qf5 {[%clk 0:01:24.4]} 36. Rc2 {[%clk 0:00:11.2]} 36... Rbe8 {[%clk 0:01:24.2]}
37. Rdc1 {[%clk 0:00:12]} 37... h5 {[%clk 0:01:22.7]} 38. h3 {[%clk 0:00:12.8]}
38... Kh7 {[%clk 0:01:22]} 39. Rc7 {[%clk 0:00:12.9]} 39... Qf7 {[%clk
0:01:21.5]} 40. Rxe7 {[%clk 0:00:12.7]} 40... Rxe7 {[%clk 0:01:22.9]} 41. Rc8
{[%clk 0:00:12.2]} 41... Qf5 {[%clk 0:01:22.3]} 42. Rc2 {[%clk 0:00:12]} 42...
Qf7 {[%clk 0:01:21.9]} 43. Qc4 {[%clk 0:00:07.5]} 43... Qf6 {[%clk 0:01:21.9]}
44. Rd2 {[%clk 0:00:06.5]} 44... Qa1+ {[%clk 0:01:22.5]} 45. Kh2 {[%clk
0:00:07.3]} 45... Qxa5 {[%clk 0:01:24]} 46. Qb3 {[%clk 0:00:03.9]} 46... Rc7
{[%clk 0:01:19.9]} 47. Nc4 {[%clk 0:00:03.5]} 47... Qa6 {[%clk 0:01:19.6]} 48.
Rc2 {[%clk 0:00:03]} 48... b5 {[%clk 0:01:14.8]} 49. Nb6 {[%clk 0:00:02.2]}
49... Rb7 {[%clk 0:01:01.1]} 50. Rc6 {[%clk 0:00:02.3]} 50... Bf8 {[%clk
0:00:47.3]} 51. Qb4 {[%clk 0:00:03.3]} 51... Qa1 {[%clk 0:00:42.1]} 52. Qxe4
{[%clk 0:00:03.8]} 52... Qf6 {[%clk 0:00:41.1]} 53. Qd3 {[%clk 0:00:04.3]} 53...
Re7 {[%clk 0:00:40.8]} 54. Bd2 {[%clk 0:00:04.4]} 54... Bh6 {[%clk 0:00:41.6]}
55. Qf3 {[%clk 0:00:03.5]} 55... Rf7 {[%clk 0:00:36.7]} 56. Rc2 {[%clk
0:00:04.2]} 56... Qf5 {[%clk 0:00:37.3]} 57. Rb2 {[%clk 0:00:03.3]} 57... Qf6
{[%clk 0:00:34.2]} 58. Rxb5 {[%clk 0:00:04.2]} 58... Qd4 {[%clk 0:00:35.3]} 59.
Rb4 {[%clk 0:00:04.7]} 59... Qxd2 {[%clk 0:00:35.4]} 60. Re4 {[%clk 0:00:04.9]}
60... Bxf4+ {[%clk 0:00:35.8]} 61. Kg1 {[%clk 0:00:04.5]} 61... Qc1+ {[%clk
0:00:33.9]} 0-1

[Event "*** Titled Tuesday Blitz"]
[Site "Chess.com"]
[Date "2019.04.02"]
[Round "1"]
[White "FrenchMonster2002"]
[Black "MatthewG-p4p"]
[Result "1-0"]
[WhiteElo "2368"]
[BlackElo "2656"]
[TimeControl "180+2"]
[EndTime "14:10:02 PDT"]
[Termination "FrenchMonster2002 won by resignation"]

1. e4 {[%clk 0:03:01.9]} 1... e6 {[%clk 0:02:58.5]} 2. d4 {[%clk 0:03:02.7]}
2... d5 {[%clk 0:02:56.1]} 3. Nc3 {[%clk 0:03:03.2]} 3... Bb4 {[%clk 0:02:56.6]}
4. e5 {[%clk 0:03:03.8]} 4... Ne7 {[%clk 0:02:57]} 5. Bd2 {[%clk 0:03:04.5]}
5... O-O {[%clk 0:02:57.2]} 6. f4 {[%clk 0:03:02.8]} 6... f6 {[%clk 0:02:54.7]}
7. Nf3 {[%clk 0:03:03.6]} 7... a6 {[%clk 0:02:53.8]} 8. a3 {[%clk 0:02:57.2]}
8... Bxc3 {[%clk 0:02:52.2]} 9. bxc3 {[%clk 0:02:59.1]} 9... c5 {[%clk
0:02:47.4]} 10. Bd3 {[%clk 0:02:53]} 10... Bd7 {[%clk 0:02:40.3]} 11. O-O {[%clk
0:02:51.9]} 11... c4 {[%clk 0:02:41]} 12. Be2 {[%clk 0:02:52.8]} 12... Ba4
{[%clk 0:02:42.1]} 13. Rb1 {[%clk 0:02:34.7]} 13... b6 {[%clk 0:02:37.8]} 14.
Rb4 {[%clk 0:02:30.5]} 14... b5 {[%clk 0:02:37.6]} 15. exf6 {[%clk 0:02:07.5]}
15... gxf6 {[%clk 0:02:37.1]} 16. Nh4 {[%clk 0:02:06.8]} 16... Nbc6 {[%clk
0:02:35.3]} 17. Rb2 {[%clk 0:01:58.4]} 17... f5 {[%clk 0:02:27.9]} 18. Bh5
{[%clk 0:01:41.6]} 18... Kh8 {[%clk 0:02:25.9]} 19. Qe2 {[%clk 0:01:39.6]} 19...
Qd6 {[%clk 0:02:24.8]} 20. Re1 {[%clk 0:01:35.9]} 20... Rf6 {[%clk 0:02:26]} 21.
Be3 {[%clk 0:01:32.4]} 21... Qxa3 {[%clk 0:02:20.6]} 22. Rbb1 {[%clk 0:01:11.5]}
22... Qxc3 {[%clk 0:02:21.4]} 23. Nf3 {[%clk 0:01:03.9]} 23... Qxc2 {[%clk
0:02:20.4]} 24. Qf1 {[%clk 0:00:56.7]} 24... Rh6 {[%clk 0:02:18.9]} 25. Bf7
{[%clk 0:00:56.2]} 25... Rf8 {[%clk 0:02:17.9]} 26. Ng5 {[%clk 0:00:57.2]} 26...
Rf6 {[%clk 0:02:12.9]} 27. Bxe6 {[%clk 0:00:30.2]} 27... h6 {[%clk 0:02:13.2]}
28. Bd7 {[%clk 0:00:18]} 28... hxg5 {[%clk 0:02:12.8]} 29. fxg5 {[%clk
0:00:19.9]} 29... Rg6 {[%clk 0:02:12.8]} 30. h4 {[%clk 0:00:20.5]} 30... Rd6
{[%clk 0:02:07.4]} 31. Bxc6 {[%clk 0:00:19.2]} 31... Nxc6 {[%clk 0:02:09.3]} 32.
Bf4 {[%clk 0:00:20.4]} 32... Rd7 {[%clk 0:02:06.6]} 33. Qf3 {[%clk 0:00:15.7]}
33... Kg8 {[%clk 0:01:57.4]} 34. g6 {[%clk 0:00:13.3]} 34... Nxd4 {[%clk
0:01:55.7]} 35. Qh5 {[%clk 0:00:11.3]} 35... Ne2+ {[%clk 0:01:34.9]} 36. Rxe2
{[%clk 0:00:08.1]} 36... Qxb1+ {[%clk 0:01:35.6]} 37. Kh2 {[%clk 0:00:09.1]}
37... Qa1 {[%clk 0:00:43.6]} 38. Be5 {[%clk 0:00:10.2]} 38... Qxe5+ {[%clk
0:00:44.5]} 39. Rxe5 {[%clk 0:00:12.1]} 39... c3 {[%clk 0:00:42.7]} 40. Rxd5
{[%clk 0:00:07.2]} 40... Rg7 {[%clk 0:00:35.6]} 41. Rxf5 {[%clk 0:00:06.7]}
41... Rd8 {[%clk 0:00:28.7]} 42. Rd5 {[%clk 0:00:05]} 42... Re8 {[%clk
0:00:26.7]} 43. Rc5 {[%clk 0:00:03.6]} 43... c2 {[%clk 0:00:27.3]} 44. Qd5+
{[%clk 0:00:04.9]} 44... Kf8 {[%clk 0:00:26]} 45. Qf5+ {[%clk 0:00:05.3]} 45...
Kg8 {[%clk 0:00:26.6]} 46. Qd5+ {[%clk 0:00:06.7]} 46... Kf8 {[%clk 0:00:27.1]}
47. Qf5+ {[%clk 0:00:08]} 47... Kg8 {[%clk 0:00:26]} 48. Qd5+ {[%clk 0:00:09]}
48... Kh8 {[%clk 0:00:26.2]} 49. h5 {[%clk 0:00:10.9]} 49... Rge7 {[%clk
0:00:20.1]} 50. Qd4+ {[%clk 0:00:10.2]} 50... Kg8 {[%clk 0:00:20.8]} 51. h6
{[%clk 0:00:11.2]} 51... b4 {[%clk 0:00:18]} 52. h7+ {[%clk 0:00:12.1]} 52...
Rxh7+ {[%clk 0:00:19.5]} 53. gxh7+ {[%clk 0:00:14]} 53... Kxh7 {[%clk
0:00:21.4]} 54. Rh5+ {[%clk 0:00:14.8]} 54... Kg6 {[%clk 0:00:22.3]} 55. Qg4+
{[%clk 0:00:15.2]} 55... Kf6 {[%clk 0:00:22.9]} 56. Rf5+ {[%clk 0:00:16.6]}
56... Ke7 {[%clk 0:00:24.2]} 57. Qe4+ {[%clk 0:00:16.3]} 57... Kd6 {[%clk
0:00:25.7]} 58. Qxb4+ {[%clk 0:00:16.7]} 58... Ke6 {[%clk 0:00:26]} 59. Qe4+
{[%clk 0:00:14.8]} 59... Kd7 {[%clk 0:00:26.2]} 60. Qxa4+ {[%clk 0:00:14.1]} 1-0

[Event "*** Titled Tuesday Blitz"]
[Site "Chess.com"]
[Date "2019.04.02"]
[Round "1"]
[White "ruvat"]
[Black "TomsKantans"]
[Result "0-1"]
[WhiteElo "2308"]
[BlackElo "2630"]
[TimeControl "180+2"]
[EndTime "14:10:02 PDT"]
[Termination "TomsKantans won by resignation"]

1. d4 {[%clk 0:02:44]} 1... Nf6 {[%clk 0:03:00.1]} 2. c4 {[%clk 0:02:44.1]} 2...
g6 {[%clk 0:02:59.2]} 3. Nf3 {[%clk 0:02:44.8]} 3... Bg7 {[%clk 0:02:57.2]} 4.
g3 {[%clk 0:02:45.7]} 4... O-O {[%clk 0:02:56.4]} 5. Bg2 {[%clk 0:02:46.3]} 5...
d5 {[%clk 0:02:53.1]} 6. cxd5 {[%clk 0:02:46]} 6... Nxd5 {[%clk 0:02:53.7]} 7.
O-O {[%clk 0:02:46.9]} 7... Nc6 {[%clk 0:02:52.6]} 8. Nc3 {[%clk 0:02:46.6]}
8... e5 {[%clk 0:02:50.5]} 9. Nxd5 {[%clk 0:02:38.7]} 9... e4 {[%clk 0:02:51]}
10. Nc3 {[%clk 0:02:25.9]} 10... exf3 {[%clk 0:02:50.8]} 11. Bxf3 {[%clk
0:02:27.2]} 11... Nxd4 {[%clk 0:02:49]} 12. Bg2 {[%clk 0:02:28]} 12... c6 {[%clk
0:01:57.6]} 13. e3 {[%clk 0:02:16.8]} 13... Ne6 {[%clk 0:01:57.2]} 14. Qe2
{[%clk 0:02:17.9]} 14... Qe7 {[%clk 0:01:43.3]} 15. Rd1 {[%clk 0:02:17.2]} 15...
h5 {[%clk 0:01:21.6]} 16. h4 {[%clk 0:02:11]} 16... Nc5 {[%clk 0:01:17.5]} 17.
e4 {[%clk 0:02:03]} 17... Bg4 {[%clk 0:01:09.2]} 18. f3 {[%clk 0:02:03.1]} 18...
Be6 {[%clk 0:01:08.5]} 19. Bg5 {[%clk 0:01:53.4]} 19... Qc7 {[%clk 0:01:04.4]}
20. Rac1 {[%clk 0:01:50.1]} 20... Qxg3 {[%clk 0:00:55.9]} 21. Qf2 {[%clk
0:01:42.7]} 21... Qxf2+ {[%clk 0:00:55.6]} 22. Kxf2 {[%clk 0:01:43.1]} 22... Nd7
{[%clk 0:00:35.2]} 23. f4 {[%clk 0:01:29.5]} 23... Nf6 {[%clk 0:00:29.7]} 24. f5
{[%clk 0:01:09.9]} 24... gxf5 {[%clk 0:00:28.9]} 25. exf5 {[%clk 0:01:05.8]}
25... Bxf5 {[%clk 0:00:30.7]} 26. Bf3 {[%clk 0:01:04.6]} 26... Ng4+ {[%clk
0:00:29.7]} 27. Kg3 {[%clk 0:00:53.5]} 27... Rfe8 {[%clk 0:00:30]} 28. Re1
{[%clk 0:00:51.2]} 28... Kh7 {[%clk 0:00:28.1]} 29. Kf4 {[%clk 0:00:51.1]} 29...
Kg6 {[%clk 0:00:28]} 30. Be4 {[%clk 0:00:43.3]} 30... Bxe4 {[%clk 0:00:18.4]}
31. Nxe4 {[%clk 0:00:44.1]} 31... Be5+ {[%clk 0:00:19.2]} 32. Kf3 {[%clk
0:00:44.3]} 32... Bxb2 {[%clk 0:00:19.9]} 33. Rb1 {[%clk 0:00:44.1]} 33... Bd4
{[%clk 0:00:17.7]} 34. Rxb7 {[%clk 0:00:44.2]} 34... Re6 {[%clk 0:00:18.8]} 35.
Rd1 {[%clk 0:00:38.1]} 35... c5 {[%clk 0:00:19.4]} 36. Ng3 {[%clk 0:00:36.2]}
36... Rae8 {[%clk 0:00:18.8]} 37. Kg2 {[%clk 0:00:35.6]} 37... a5 {[%clk
0:00:18.1]} 38. Bf4 {[%clk 0:00:34.4]} 38... Bf6 {[%clk 0:00:18.4]} 39. Rb5
{[%clk 0:00:33.6]} 39... Bxh4 {[%clk 0:00:18.8]} 40. Rxc5 {[%clk 0:00:32.2]}
40... Bxg3 {[%clk 0:00:19.9]} 41. Kxg3 {[%clk 0:00:29.4]} 41... Ne3 {[%clk
0:00:20.1]} 42. Rg1 {[%clk 0:00:25.3]} 42... Nf5+ {[%clk 0:00:20]} 43. Kh3+
{[%clk 0:00:22.3]} 43... Kf6 {[%clk 0:00:21.1]} 44. Bg5+ {[%clk 0:00:21.8]}
44... Kg6 {[%clk 0:00:21.6]} 45. Bh4+ {[%clk 0:00:18.1]} 45... Kh6 {[%clk
0:00:22.3]} 46. Rxf5 {[%clk 0:00:19.1]} 46... Re3+ {[%clk 0:00:23.5]} 47. Bg3
{[%clk 0:00:19.3]} 47... Ra3 {[%clk 0:00:21.6]} 48. Rg2 {[%clk 0:00:19.4]} 48...
Kg6 {[%clk 0:00:22]} 49. Rd5 {[%clk 0:00:16.9]} 49... Re4 {[%clk 0:00:21.9]} 50.
Rd6+ {[%clk 0:00:17.4]} 50... f6 {[%clk 0:00:22.7]} 51. Kh2 {[%clk 0:00:18.2]}
51... Kf7 {[%clk 0:00:22.9]} 52. Bf2 {[%clk 0:00:16.7]} 52... Rxa2 {[%clk
0:00:21.7]} 53. Rxf6+ {[%clk 0:00:13.5]} 53... Kxf6 {[%clk 0:00:21]} 54. Bh4+
{[%clk 0:00:13]} 54... Rxh4+ {[%clk 0:00:21.7]} 0-1

[Event "*** Titled Tuesday Blitz"]
[Site "Chess.com"]
[Date "2019.04.02"]
[Round "1"]
[White "europa2012"]
[Black "evgenyermolaev"]
[Result "1-0"]
[WhiteElo "2136"]
[BlackElo "2509"]
[TimeControl "180+2"]
[EndTime "14:10:03 PDT"]
[Termination "europa2012 won by resignation"]

1. d4 {[%clk 0:03:01.9]} 1... Nf6 {[%clk 0:02:57.9]} 2. c4 {[%clk 0:03:02.3]}
2... c5 {[%clk 0:02:59.2]} 3. d5 {[%clk 0:03:02.8]} 3... g6 {[%clk 0:02:57.7]}
4. Nc3 {[%clk 0:02:58.4]} 4... Bg7 {[%clk 0:02:58.8]} 5. Nf3 {[%clk 0:02:54.9]}
5... d6 {[%clk 0:02:59.7]} 6. Bf4 {[%clk 0:02:53.9]} 6... O-O {[%clk 0:03:00.2]}
7. e3 {[%clk 0:02:55.2]} 7... Na6 {[%clk 0:02:55.3]} 8. h3 {[%clk 0:02:51]} 8...
Nc7 {[%clk 0:02:56.1]} 9. Bd3 {[%clk 0:02:43.7]} 9... Rb8 {[%clk 0:02:53.6]} 10.
a4 {[%clk 0:02:44.7]} 10... Na6 {[%clk 0:02:54.7]} 11. O-O {[%clk 0:02:42.1]}
11... Nb4 {[%clk 0:02:55.6]} 12. Be2 {[%clk 0:02:41.1]} 12... a6 {[%clk
0:02:50.5]} 13. Nd2 {[%clk 0:02:37.4]} 13... e6 {[%clk 0:02:47.7]} 14. dxe6
{[%clk 0:02:33]} 14... Bxe6 {[%clk 0:02:49.6]} 15. Nde4 {[%clk 0:02:30.7]} 15...
Nxe4 {[%clk 0:02:50.7]} 16. Nxe4 {[%clk 0:02:31.4]} 16... Bxb2 {[%clk
0:02:44.5]} 17. Rb1 {[%clk 0:02:32]} 17... Be5 {[%clk 0:02:45.4]} 18. Bxe5
{[%clk 0:02:28.4]} 18... dxe5 {[%clk 0:02:47.3]} 19. Nxc5 {[%clk 0:02:29.6]}
19... a5 {[%clk 0:02:29.1]} 20. Nxe6 {[%clk 0:02:26.2]} 20... fxe6 {[%clk
0:02:31]} 21. Qb3 {[%clk 0:02:19.9]} 21... Qe7 {[%clk 0:02:28.4]} 22. Qc3 {[%clk
0:01:58.1]} 22... Qc5 {[%clk 0:02:26.3]} 23. Bg4 {[%clk 0:01:55.8]} 23... Rbe8
{[%clk 0:02:23.9]} 24. Rbd1 {[%clk 0:01:52.7]} 24... Re7 {[%clk 0:02:11]} 25.
Rd2 {[%clk 0:01:48.2]} 25... h5 {[%clk 0:02:02.9]} 26. Be2 {[%clk 0:01:46.1]}
26... Nc6 {[%clk 0:02:03.6]} 27. Rfd1 {[%clk 0:01:44.7]} 27... Qb4 {[%clk
0:01:50.6]} 28. Qc2 {[%clk 0:01:38.8]} 28... Kg7 {[%clk 0:01:42.1]} 29. Rd7
{[%clk 0:01:27.2]} 29... Rff7 {[%clk 0:01:43.5]} 30. Rxe7 {[%clk 0:01:19.2]}
30... Rxe7 {[%clk 0:01:44.9]} 31. Bd3 {[%clk 0:01:17.2]} 31... Rd7 {[%clk
0:01:28.8]} 32. Rb1 {[%clk 0:01:13.8]} 32... Qe7 {[%clk 0:01:21.6]} 33. Bxg6
{[%clk 0:01:13.6]} 33... Nb4 {[%clk 0:01:22.8]} 34. Qe4 {[%clk 0:01:13]} 34...
Qf6 {[%clk 0:01:21.8]} 35. Bxh5 {[%clk 0:01:08.7]} 35... b6 {[%clk 0:01:14.7]}
36. Qg4+ {[%clk 0:01:08]} 36... Kh6 {[%clk 0:01:13]} 37. Be8 {[%clk 0:01:07.6]}
37... Rd2 {[%clk 0:01:07.1]} 38. Qh5+ {[%clk 0:01:05.8]} 38... Kg7 {[%clk
0:01:08.2]} 39. Rf1 {[%clk 0:01:02.1]} 39... Nd3 {[%clk 0:01:06.5]} 40. f3
{[%clk 0:00:44.1]} 40... Nc5 {[%clk 0:00:47.8]} 41. Rb1 {[%clk 0:00:34.9]} 41...
e4 {[%clk 0:00:40.8]} 42. Rxb6 {[%clk 0:00:21.4]} 42... exf3 {[%clk 0:00:27.4]}
43. Qxf3 {[%clk 0:00:20.1]} 43... Qe7 {[%clk 0:00:18.3]} 44. Qg4+ {[%clk
0:00:18.8]} 44... Kf8 {[%clk 0:00:19]} 45. Rb8 {[%clk 0:00:18.6]} 45... Qd6
{[%clk 0:00:17.8]} 46. Qf3+ {[%clk 0:00:11.6]} 46... Kg8 {[%clk 0:00:13]} 47.
Bg6+ {[%clk 0:00:07.2]} 47... Kg7 {[%clk 0:00:09.6]} 48. Qf7+ {[%clk 0:00:07.9]}
48... Kh6 {[%clk 0:00:11.3]} 49. Qh7+ {[%clk 0:00:08.5]} 49... Kg5 {[%clk
0:00:12.9]} 50. Qh5+ {[%clk 0:00:09.3]} 50... Kf6 {[%clk 0:00:13.8]} 51. Rb1
{[%clk 0:00:05.4]} 51... Qg3 {[%clk 0:00:08.5]} 52. Rf1+ {[%clk 0:00:06.2]}
52... Ke7 {[%clk 0:00:10.1]} 53. Qxc5+ {[%clk 0:00:07.1]} 53... Rd6 {[%clk
0:00:07.8]} 54. Rf7+ {[%clk 0:00:06.7]} 54... Kd8 {[%clk 0:00:09.1]} 55. Qc7+
{[%clk 0:00:06.1]} 1-0